bitfinex/quotes_BTCUSD_20260308
["timestamp","ask_amount","ask_price","bid_price","bid_amount"]
[1772989580822,0.00152,67086.0,67083.0,0.00452154]
[1772989581060,0.07452453,67092.0,67083.0,0.00452154]
[1772989581061,0.00152,67085.0,67083.0,0.00452154]
[1772989581268,0.00152,67084.0,67083.0,0.00452154]
[1772989581469,0.07452441,67093.0,67084.0,0.07453342]
[1772989581673,0.00152,67092.0,67084.0,0.07453342]
[1772989582543,0.14744,67104.0,67086.0,0.2520101]
[1772989582748,0.14744,67104.0,67089.0,0.00452154]
[1772989582749,0.00152,67103.0,67089.0,0.00452154]
[1772989582948,0.00152,67103.0,67090.0,0.25653164]
[1772989583150,0.00152,67102.0,67090.0,0.25653164]
[1772989583355,0.00152,67102.0,67084.0,0.07453342]
[1772989583356,0.00647812,67102.0,67084.0,0.07453342]
[1772989583555,0.00647812,67102.0,67086.0,0.00452154]
[1772989583556,0.07451453,67101.0,67086.0,0.00452154]
[1772989583756,0.07451453,67101.0,67084.0,0.07453342]
[1772989583757,0.07451453,67101.0,67088.0,0.00452154]
[1772989584106,0.00022001,67096.0,67088.0,0.00452154]
[1772989584406,0.00152,67095.0,67088.0,0.00452154]
[1772989585608,0.00152,67095.0,67089.0,0.07452786]
[1772989585835,0.07473454,67103.0,67089.0,0.07452786]
[1772989585836,0.00152,67094.0,67091.0,0.2520101]
[1772989586041,0.2219039,67111.0,67093.0,0.2520101]
[1772989586242,0.00152,67110.0,67096.0,0.00452154]
[1772989586443,0.00152,67110.0,67089.0,0.07452786]
[1772989586444,0.00495812,67108.0,67089.0,0.07452786]
[1772989586648,0.00495812,67106.0,67089.0,0.07452786]
[1772989586845,0.0745039,67111.0,67089.0,0.07452786]
[1772989587053,0.24496297,67109.0,67089.0,0.07452786]
[1772989587255,0.00495812,67106.0,67089.0,0.07452786]
[1772989587536,0.00495812,67105.0,67089.0,0.07452786]
[1772989587740,0.0760312,67104.0,67088.0,0.07452786]
[1772989588233,0.32647,67112.0,67091.0,0.2520101]
[1772989588234,0.00152,67103.0,67091.0,0.2520101]
[1772989588442,0.00152,67102.0,67094.0,0.00452154]
[1772989589711,0.07450583,67109.0,67095.0,0.0745212]
[1772989589910,0.00647812,67108.0,67095.0,0.0745212]
[1772989590113,0.00495812,67107.0,67095.0,0.0745212]
[1772989591250,0.00495812,67105.0,67095.0,0.0745212]
[1772989591422,0.00495812,67104.0,67095.0,0.0745212]
[1772989591824,0.07451231,67103.0,67088.0,0.07452786]
[1772989592074,0.00152,67102.0,67088.0,0.07452786]
[1772989592375,0.00152,67102.0,67089.0,0.01022124]
[1772989592680,0.00152,67101.0,67089.0,0.01022124]
[1772989592906,0.07473289,67112.0,67093.0,0.01022124]
[1772989593165,0.00152,67110.0,67091.0,0.01022124]
[1772989593348,0.00022001,67102.0,67094.0,0.25616137]
[1772989593524,0.00022001,67120.0,67088.0,0.07452786]
[1772989593722,0.00022001,67120.0,67095.0,0.01022124]
[1772989593723,0.00152,67119.0,67095.0,0.01022124]
[1772989593922,0.00022001,67116.0,67100.0,0.01022124]
[1772989594124,0.00022001,67116.0,67102.0,0.25616137]
[1772989594326,0.00022001,67116.0,67103.0,0.01022124]
[1772989594526,0.00022001,67116.0,67104.0,0.01022124]
[1772989594728,0.24848738,67115.0,67098.0,0.07451786]
[1772989595088,0.24848738,67115.0,67099.0,0.01022124]
[1772989596122,0.0745001,67114.0,67100.0,0.07451564]
[1772989596335,0.0760201,67114.0,67102.0,0.01022124]
[1772989597612,0.24848738,67113.0,67099.0,0.07451564]
[1772989598198,0.07450232,67112.0,67099.0,0.07451564]
[1772989599201,0.24848738,67111.0,67099.0,0.07451564]
[1772989600129,0.00152,67110.0,67102.0,0.07451342]
[1772989600337,0.00152,67110.0,67103.0,0.00544574]
[1772989600755,0.00152,67109.0,67103.0,0.00544574]
[1772989601364,0.00152,67109.0,67102.0,0.07451342]
[1772989601762,0.07450318,67112.0,67102.0,0.07995916]
[1772989601984,0.00152,67111.0,67103.0,0.00544574]
[1772989602158,0.07450454,67110.0,67104.0,0.07451099]
[1772989602374,0.00152,67111.0,67105.0,0.00544574]
[1772989602908,0.00152,67111.0,67104.0,0.07451099]
[1772989602909,0.07450454,67110.0,67104.0,0.07451099]
[1772989604655,0.07450318,67112.0,67102.0,0.07451342]
[1772989604656,0.00152,67109.0,67102.0,0.07451342]
[1772989605024,0.00152,67109.0,67102.0,0.07995916]
[1772989607900,0.00152,67109.0,67102.0,0.07451342]
[1772989608103,0.00152,67109.0,67103.0,0.00544574]
[1772989609479,0.00152,67108.0,67103.0,0.00544574]
[1772989609688,0.00152,67107.0,67105.0,0.00544574]
[1772989610993,0.00152,67107.0,67103.0,0.0745112]
[1772989611401,0.07472382,67111.0,67101.0,0.07451353]
[1772989611629,0.00152,67106.0,67100.0,0.07451516]
[1772989611878,0.00152,67106.0,67093.0,0.00544574]
[1772989612514,0.00152,67106.0,67093.0,0.25616137]
[1772989612712,0.00152,67106.0,67094.0,0.00544574]
[1772989613125,0.00152,67106.0,67094.0,0.25616137]
[1772989613325,0.00152,67106.0,67096.0,0.00544574]
[1772989614155,0.00152,67106.0,67097.0,0.07451897]
[1772989614355,0.00152,67106.0,67098.0,0.00544574]
[1772989616195,0.00152,67106.0,67099.0,0.07451675]
[1772989616546,0.00152,67106.0,67100.0,0.00460513]
[1772989617400,0.00152,67105.0,67103.0,0.00460513]
[1772989617906,0.00152,67105.0,67103.0,0.00308513]
[1772989618117,0.00152,67105.0,67103.0,0.00156513]
[1772989618349,0.07472355,67111.0,67104.0,0.0745112]
[1772989618467,0.00152,67110.0,67104.0,0.0745112]
[1772989618866,0.00033909,67120.0,67104.0,0.0745112]
[1772989619079,0.00152,67115.0,67105.0,0.00460513]
[1772989619710,0.00033909,67120.0,67105.0,0.00460513]
[1772989619884,0.00152,67114.0,67105.0,0.00460513]
[1772989620296,0.00152,67114.0,67106.0,0.07450898]
[1772989620515,0.00152,67114.0,67107.0,0.00460513]
[1772989621120,0.00152,67113.0,67107.0,0.00460513]
[1772989621327,0.00152,67112.0,67107.0,0.00460513]
[1772989621528,0.00152,67111.0,67107.0,0.00460513]
[1772989622193,0.00152,67110.0,67107.0,0.00460513]
[1772989622429,0.00471803,67131.0,67108.0,0.25292967]
[1772989622624,0.00152,67130.0,67112.0,0.23882812]
[1772989622884,0.00152,67130.0,67113.0,0.00460513]
[1772989623085,0.00152,67129.0,67113.0,0.00460513]
[1772989623283,0.00152,67129.0,67113.0,0.23882812]
[1772989623490,0.0744817,67131.0,67114.0,0.00460513]
[1772989623847,0.00152,67130.0,67114.0,0.00460513]
[1772989624843,0.0744817,67131.0,67115.0,0.07449899]
[1772989625186,0.00152,67130.0,67116.0,0.00486028]
[1772989626494,0.00022001,67131.0,67116.0,0.00486028]
[1772989626688,0.00152,67129.0,67116.0,0.00486028]
[1772989627280,0.00152,67129.0,67117.0,0.07935705]
[1772989627695,0.00152,67129.0,67118.0,0.00486028]
[1772989627896,0.00152,67128.0,67118.0,0.00486028]
[1772989628885,0.00152,67128.0,67117.0,0.07449677]
[1772989630283,0.00152,67128.0,67116.0,0.07449677]
[1772989630508,0.07448364,67129.0,67116.0,0.07449677]
[1772989630509,0.00152,67127.0,67116.0,0.07449677]
[1772989631881,0.00152,67127.0,67113.0,0.07449899]
[1772989632110,0.00152,67127.0,67114.0,0.00464971]
[1772989633974,0.00152,67126.0,67115.0,0.07449899]
[1772989634175,0.00152,67126.0,67116.0,0.00578001]
[1772989635677,0.0744847,67128.0,67116.0,0.00578001]
[1772989635876,0.00152,67127.0,67116.0,0.00578001]
[1772989636343,0.00152,67127.0,67117.0,0.07449677]
[1772989638341,0.07448353,67129.0,67117.0,0.07449677]
[1772989638583,0.00152,67128.0,67117.0,0.07449677]
[1772989639286,0.00022001,67131.0,67118.0,0.00464971]
[1772989639493,0.00152,67130.0,67118.0,0.23592722]
[1772989639691,0.00152,67130.0,67120.0,0.23592722]
[1772989639989,0.00152,67130.0,67117.0,0.07449677]
[1772989639990,0.00608712,67130.0,67117.0,0.07449677]
[1772989640419,0.00608712,67130.0,67117.0,0.07914648]
[1772989641766,0.00608712,67130.0,67117.0,0.07449677]
[1772989641965,0.00152,67130.0,67118.0,0.00464971]
[1772989642178,0.07469387,67138.0,67122.0,0.23592722]
[1772989642408,0.00152,67137.0,67123.0,0.00464971]
[1772989642826,0.07469387,67138.0,67123.0,0.00464971]
[1772989643163,0.00152,67137.0,67123.0,0.00464971]
[1772989643793,0.07469387,67138.0,67123.0,0.00464971]
[1772989643993,0.07469387,67138.0,67124.0,0.23592722]
[1772989644194,0.00152,67137.0,67125.0,0.00464971]
[1772989645003,0.00152,67136.0,67127.0,0.00464971]
[1772989645654,0.00152,67135.0,67127.0,0.00464971]
[1772989647417,0.0003007,67148.0,67128.0,0.07448456]
[1772989647614,0.0003007,67148.0,67130.0,0.00464971]
[1772989647615,0.07446349,67147.0,67130.0,0.00464971]
[1772989647816,0.07598349,67147.0,67130.0,0.00464971]
[1772989647942,0.3197705,67147.0,67130.0,0.00464971]
[1772989648138,0.00152,67146.0,67130.0,0.00464971]
[1772989648344,0.00152,67145.0,67130.0,0.00464971]
[1772989648799,0.00191684,67145.0,67130.0,0.00464971]
[1772989649153,0.07638347,67145.0,67131.0,0.07448123]
[1772989649355,0.07638347,67145.0,67132.0,0.00464971]
[1772989650714,0.00022001,67143.0,67132.0,0.00464971]
[1772989651079,0.00152,67142.0,67132.0,0.00464971]
[1772989651444,0.00578,67160.0,67133.0,0.07447901]
[1772989651585,0.00578,67160.0,67137.0,0.00464971]
[1772989651586,0.00152,67155.0,67137.0,0.00464971]
[1772989652275,0.07505267,67156.0,67137.0,0.00464971]
[1772989652276,0.00059903,67156.0,67137.0,0.00464971]
[1772989652482,0.00152,67155.0,67139.0,0.00464971]
[1772989652884,0.0750526,67156.0,67139.0,0.00464971]
[1772989653109,0.00152,67155.0,67139.0,0.00464971]
[1772989653697,0.00152,67154.0,67141.0,0.23360955]
[1772989653907,0.00152,67154.0,67142.0,0.00464971]
[1772989654119,0.00059903,67156.0,67142.0,0.00464971]
[1772989654370,0.00152,67155.0,67142.0,0.00464971]
[1772989656160,0.00152,67155.0,67143.0,0.07446792]
[1772989656675,0.00397634,67153.0,67143.0,0.07446792]
[1772989657004,0.24264653,67152.0,67143.0,0.07446792]
[1772989657183,0.00152,67155.0,67144.0,0.00464971]
[1772989657775,0.07597482,67155.0,67144.0,0.00464971]
[1772989657993,0.0492983,67150.0,67132.0,0.00464971]
[1772989658191,0.0492983,67150.0,67130.0,0.07448012]
[1772989658192,0.0744657,67145.0,67130.0,0.07448012]
[1772989658486,0.24264653,67144.0,67129.0,0.07448012]
[1772989658690,0.00397634,67141.0,67129.0,0.07448012]
[1772989658846,0.00152,67143.0,67130.0,0.00487867]
[1772989659240,0.23867019,67148.0,67129.0,0.07448012]
[1772989659241,0.00152,67142.0,67132.0,0.00487867]
[1772989659463,0.07505265,67156.0,67142.0,0.00487867]
[1772989659657,0.00152,67155.0,67142.0,0.00487867]
[1772989660111,0.07505265,67156.0,67142.0,0.00487867]
[1772989660112,0.00152,67154.0,67142.0,0.00487867]
[1772989660499,0.07445584,67154.0,67143.0,0.07934659]
[1772989660692,0.00152,67153.0,67143.0,0.07934659]
[1772989661455,0.00152,67152.0,67143.0,0.07934659]
[1772989661667,0.00397634,67150.0,67135.0,0.07447581]
[1772989661914,0.23867019,67147.0,67135.0,0.07447581]
[1772989662094,0.0744556,67155.0,67136.0,0.23360955]
[1772989662265,0.0744556,67155.0,67137.0,0.23360955]
[1772989662266,0.00152,67154.0,67137.0,0.23360955]
[1772989662467,0.00152,67154.0,67138.0,0.00487867]
[1772989663197,0.07445683,67153.0,67140.0,0.00487867]
[1772989663602,0.00059903,67156.0,67140.0,0.00487867]
[1772989663830,0.00152,67155.0,67143.0,0.00487867]
[1772989665198,0.00059903,67156.0,67144.0,0.07446681]
[1772989665379,0.00152,67154.0,67144.0,0.07446681]
[1772989666666,0.00152,67154.0,67143.0,0.07446681]
[1772989666866,0.23867019,67151.0,67140.0,0.07447082]
[1772989667095,0.23867019,67149.0,67140.0,0.07447082]
[1772989667289,0.07598238,67148.0,67139.0,0.0002]
[1772989667494,0.00152,67148.0,67139.0,0.0002]
[1772989669048,0.07445785,67153.0,67140.0,0.00487867]
[1772989669224,0.00152,67152.0,67141.0,0.00487867]
[1772989669546,0.07445905,67151.0,67142.0,0.07446903]
[1772989670099,0.31312924,67151.0,67142.0,0.07446903]
[1772989670298,0.00152,67150.0,67142.0,0.07446903]
[1772989670546,0.00152,67150.0,67140.0,0.0744691]
[1772989670758,0.23867019,67149.0,67140.0,0.0744691]
[1772989671131,0.00610385,67150.0,67140.0,0.0744691]
[1772989671311,0.24477404,67150.0,67140.0,0.0744691]
[1772989671727,0.07446127,67149.0,67139.0,0.0002]
[1772989672531,0.07446127,67149.0,67139.0,0.02470052]
[1772989673820,0.23867019,67148.0,67135.0,0.07447668]
[1772989674279,0.23867019,67148.0,67132.0,0.07467994]
[1772989674513,0.23867019,67148.0,67128.0,0.07448395]
[1772989675095,0.07446127,67149.0,67131.0,0.23360955]
[1772989675096,0.00152,67147.0,67131.0,0.23360955]
[1772989675306,0.00152,67147.0,67132.0,0.23360955]
[1772989675518,0.23867019,67146.0,67129.0,0.02450052]
[1772989675750,0.0744657,67145.0,67130.0,0.07448234]
[1772989676086,0.0744657,67145.0,67132.0,0.0002]
[1772989676299,0.31313589,67145.0,67132.0,0.0002]
[1772989676812,0.23867019,67144.0,67132.0,0.0002]
[1772989677097,0.23867019,67144.0,67132.0,0.02584311]
[1772989677664,0.00152,67143.0,67132.0,0.02584311]
[1772989677870,0.00152,67142.0,67133.0,0.07447901]
[1772989678269,0.00152,67142.0,67132.0,0.10032319]
[1772989678472,0.23867019,67140.0,67132.0,0.07468008]
[1772989679070,0.00152,67139.0,67132.0,0.07468008]
[1772989680690,0.07599297,67139.0,67132.0,0.0002]
[1772989681857,0.23867019,67138.0,67125.0,0.0002]
[1772989682055,0.23867019,67138.0,67122.0,0.11889944]
[1772989682056,0.23867019,67138.0,67123.0,0.07448977]
[1772989682881,0.24841138,67136.0,67119.0,0.07449455]
[1772989683100,0.24841138,67136.0,67120.0,0.02564311]
[1772989683304,0.24841138,67134.0,67119.0,0.07449455]
[1772989683603,0.24841138,67134.0,67125.0,0.06]
[1772989684382,0.24841138,67134.0,67117.0,0.0002]
[1772989684588,0.24851773,67134.0,67118.0,0.07449566]
[1772989684912,0.24851773,67134.0,67117.0,0.07469566]
[1772989684913,0.2486919,67132.0,67119.0,0.0002]
[1772989687477,0.2486919,67130.0,67117.0,2.736e-05]
[1772989687688,0.2486919,67128.0,67117.0,2.736e-05]
[1772989688866,0.2486919,67128.0,67104.0,0.07471098]
[1772989689060,0.2486919,67119.0,67104.0,0.0002]
[1772989689283,0.2486919,67117.0,67104.0,0.0002]
[1772989689505,0.2486919,67115.0,67104.0,0.0002]
[1772989690778,0.2486919,67115.0,67098.0,0.10016002]
[1772989690779,0.2486919,67115.0,67098.0,0.10016087]
[1772989691434,0.0745001,67114.0,67098.0,0.10016087]
[1772989691651,0.0745001,67114.0,67098.0,0.07451776]
[1772989691652,0.2486919,67113.0,67098.0,0.07451776]
[1772989691827,0.2502119,67112.0,67097.0,0.10036132]
[1772989692040,0.00152,67112.0,67098.0,0.02564311]
[1772989692185,0.00152,67111.0,67098.0,0.02564311]
[1772989692816,0.00152,67111.0,67098.0,0.02603995]
[1772989693764,0.07450454,67110.0,67100.0,0.02495162]
[1772989694933,0.32318978,67116.0,67099.0,0.07451675]
[1772989694934,0.00152,67109.0,67099.0,0.07451675]
[1772989695074,0.07449813,67116.0,67107.0,0.22784024]
[1772989695275,0.00152,67115.0,67108.0,0.01838205]
[1772989695756,0.07449084,67123.0,67108.0,0.01838205]
[1772989695905,0.07449084,67123.0,67109.0,0.01838205]
[1772989696109,0.074489,67124.0,67112.0,0.22784024]
[1772989696316,0.07448301,67130.0,67114.0,0.01838205]
[1772989696317,0.00152,67123.0,67114.0,0.01838205]
[1772989696501,0.00152,67122.0,67114.0,0.01838205]
[1772989696843,0.00152,67121.0,67114.0,0.01838205]
[1772989697009,0.07448345,67129.0,67114.0,0.01838205]
[1772989697212,0.07448345,67129.0,67116.0,0.01838205]
[1772989697418,0.00152,67128.0,67116.0,0.22784024]
[1772989697592,0.00152,67127.0,67117.0,0.01838205]
[1772989697988,0.07448345,67131.0,67119.0,0.01838205]
[1772989698192,0.00152,67126.0,67119.0,0.01838205]
[1772989698491,0.0002528,67139.0,67119.0,0.01838205]
[1772989698715,0.0002528,67139.0,67118.0,0.07449566]
[1772989698716,0.00152,67138.0,67122.0,0.22784024]
[1772989698918,0.00152,67138.0,67125.0,0.01838205]
[1772989699143,0.2486919,67137.0,67125.0,0.01838205]
[1772989699541,0.00162635,67138.0,67125.0,0.01838205]
[1772989699542,0.00152,67136.0,67125.0,0.01838205]
[1772989699915,0.00152,67135.0,67125.0,0.01838205]
[1772989700111,0.00152,67134.0,67127.0,0.22784024]
[1772989700322,0.07458021,67138.0,67128.0,0.01838205]
[1772989700526,0.00152,67137.0,67128.0,0.01838205]
[1772989700728,0.00152,67136.0,67130.0,0.01838205]
[1772989700945,0.00152,67136.0,67130.0,0.01877889]
[1772989701300,0.00152,67135.0,67130.0,0.01877889]
[1772989701873,0.00152,67135.0,67130.0,0.00039684]
[1772989702765,0.2486919,67134.0,67111.0,0.07942573]
[1772989702966,0.2486919,67134.0,67115.0,0.09288104]
[1772989703856,0.2486919,67134.0,67115.0,0.07449899]
[1772989704051,0.2486919,67134.0,67116.0,0.01838205]
[1772989704836,0.07447901,67133.0,67118.0,0.01838205]
[1772989705046,0.07599901,67133.0,67118.0,0.01838205]
[1772989705194,0.07447901,67133.0,67118.0,0.01838205]
[1772989705548,0.00152,67132.0,67118.0,0.01838205]
[1772989705762,0.00152,67132.0,67117.0,0.07449677]
[1772989705975,0.2486919,67131.0,67117.0,0.07449677]
[1772989706193,0.2486919,67131.0,67117.0,0.09287882]
[1772989706488,0.2486919,67131.0,67118.0,0.01838205]
[1772989707385,0.07448234,67130.0,67119.0,0.07449455]
[1772989708157,0.2486919,67129.0,67119.0,0.07449455]
[1772989709100,0.2486519,67129.0,67119.0,0.07449455]
[1772989709259,0.2486519,67129.0,67117.0,0.07469677]
[1772989709260,0.07448456,67128.0,67117.0,0.0002]
[1772989709459,0.32317646,67128.0,67117.0,0.0002]
[1772989709681,0.2486919,67127.0,67114.0,0.00010635]
[1772989709878,0.2486919,67125.0,67114.0,0.00010635]
[1772989711820,0.2486919,67125.0,67110.0,0.0002]
[1772989711821,0.2486919,67123.0,67110.0,0.0002]
[1772989712119,0.2486919,67123.0,67110.0,0.00031908]
[1772989712540,0.2486919,67123.0,67110.0,0.09320556]
[1772989712762,0.2486919,67123.0,67110.0,0.09305556]
[1772989712967,0.074489,67124.0,67111.0,0.01838205]
[1772989713092,0.00152,67123.0,67111.0,0.01838205]
[1772989714558,0.074489,67125.0,67112.0,0.07450232]
[1772989714761,0.07448234,67130.0,67113.0,0.01838205]
[1772989715058,0.00152,67129.0,67113.0,0.01838205]
[1772989716135,0.24554701,67129.0,67113.0,0.01838205]
[1772989718243,0.24402701,67127.0,67114.0,0.0745001]
[1772989718696,0.24402701,67127.0,67114.0,0.09288215]
[1772989719964,0.00152,67126.0,67114.0,0.09288215]
[1772989720163,0.07448789,67125.0,67116.0,0.07449788]
[1772989721340,0.00152,67124.0,67117.0,0.01472881]
[1772989721555,0.00152,67124.0,67117.0,0.01457881]
[1772989722376,0.07449011,67123.0,67117.0,0.01457881]
[1772989722592,0.07449011,67123.0,67117.0,0.08907529]
[1772989723930,0.07449011,67123.0,67117.0,0.01457881]
[1772989724121,0.07449011,67123.0,67117.0,0.08907527]
[1772989724650,0.07449011,67123.0,67111.0,0.01485381]
[1772989725003,0.00152,67122.0,67113.0,0.01465381]
[1772989725206,0.00152,67121.0,67117.0,0.01465381]
[1772989725432,0.00152,67121.0,67117.0,0.01400205]
[1772989725643,0.07448789,67125.0,67117.0,0.01400205]
[1772989725988,0.00152,67120.0,67117.0,0.01248205]
[1772989726163,0.07448789,67125.0,67117.0,0.01248205]
[1772989726358,0.00152,67119.0,67117.0,0.01248205]
[1772989726780,0.00152,67119.0,67118.0,0.08806359]
[1772989727501,0.0744896,67124.0,67118.0,0.08806359]
[1772989727661,0.00152,67119.0,67118.0,0.08806359]
[1772989729940,0.00152,67119.0,67118.0,0.08654359]
[1772989731168,0.00152,67119.0,67118.0,0.08389616]
[1772989733812,0.00152,67119.0,67118.0,0.08409616]
[1772989734013,0.00174001,67119.0,67118.0,0.08257616]
[1772989734844,0.31851157,67129.0,67118.0,0.08257616]
[1772989734845,0.3185105,67129.0,67118.0,0.07469566]
[1772989735046,0.00152,67128.0,67119.0,0.01072422]
[1772989735254,0.00152,67127.0,67121.0,0.01072422]
[1772989735754,0.07448554,67128.0,67121.0,0.01072422]
[1772989735755,0.00152,67126.0,67121.0,0.01072422]
[1772989736099,0.00152,67126.0,67121.0,0.00768422]
[1772989736269,0.00152,67125.0,67121.0,0.00768422]
[1772989736624,0.00152,67125.0,67120.0,0.07449344]
[1772989736765,0.00152,67124.0,67119.0,0.07449344]
[1772989736991,0.00152,67123.0,67119.0,0.07449344]
[1772989737203,0.00152,67123.0,67119.0,0.00920422]
[1772989739290,0.00152,67122.0,67121.0,0.00920422]
[1772989739688,0.07448706,67126.0,67121.0,0.00920422]
[1772989739995,0.00152,67122.0,67121.0,0.00920422]
[1772989740193,0.07448651,67127.0,67121.0,0.00920422]
[1772989740401,0.00152,67122.0,67121.0,0.00920422]
[1772989740783,0.00152,67122.0,67121.0,0.00905422]
[1772989741234,0.07448651,67127.0,67121.0,0.00905422]
[1772989741468,0.00152,67126.0,67121.0,0.08354639]
[1772989741639,0.00152,67125.0,67121.0,0.08354639]
[1772989741844,0.00152,67124.0,67122.0,0.07449122]
[1772989742001,0.00152,67123.0,67122.0,0.07449122]
[1772989743209,0.00152,67123.0,67119.0,0.07449359]
[1772989743352,0.00152,67123.0,67110.0,0.00016908]
[1772989743353,0.22819892,67121.0,67110.0,0.00016908]
[1772989744374,0.00152,67120.0,67110.0,0.00016908]
[1772989744580,0.07449122,67122.0,67110.0,0.00016908]
[1772989744581,0.07449122,67122.0,67111.0,0.00993892]
[1772989744816,0.00152,67121.0,67111.0,0.00993892]
[1772989745223,0.00152,67120.0,67111.0,0.00993892]
[1772989745400,0.07449455,67119.0,67112.0,0.07450232]
[1772989745974,0.00152,67118.0,67112.0,0.07450232]
[1772989747290,0.07449677,67117.0,67111.0,0.07480249]
[1772989747526,0.00152,67118.0,67111.0,0.07480249]
[1772989748594,0.00152,67118.0,67112.0,0.00963922]
[1772989748787,0.00152,67118.0,67111.0,0.07480249]
[1772989748984,0.00152,67118.0,67111.0,0.08444171]
[1772989749781,0.00022001,67135.0,67112.0,0.00963922]
[1772989750020,0.00022001,67135.0,67111.0,0.07480249]
[1772989750021,0.00152,67134.0,67114.0,0.23903797]
[1772989750221,0.00152,67134.0,67117.0,0.00963922]
[1772989750504,0.00152,67134.0,67119.0,0.00963922]
[1772989751277,0.00152,67134.0,67118.0,0.23903797]
[1772989751278,0.00152,67134.0,67121.0,0.00963922]
[1772989751771,0.07447042,67141.0,67124.0,0.23903797]
[1772989752000,0.00152,67140.0,67125.0,0.23903797]
[1772989752203,0.00152,67140.0,67126.0,0.00963922]
[1772989752610,0.07447042,67141.0,67126.0,0.00963922]
[1772989752746,0.00152,67139.0,67126.0,0.00963922]
[1772989753131,0.00152,67138.0,67126.0,0.00963922]
[1772989753386,0.07447042,67141.0,67126.0,0.00963922]
[1772989753595,0.07468978,67142.0,67122.0,0.07449122]
[1772989753596,1e-08,67142.0,67130.0,0.00963922]
[1772989753766,0.00152,67141.0,67134.0,0.00963922]
[1772989753966,0.0002415,67144.0,67135.0,0.00963922]
[1772989754166,0.00152,67143.0,67135.0,0.00963922]
[1772989754929,0.00161456,67143.0,67135.0,0.00963922]
[1772989755346,9.456e-05,67143.0,67135.0,0.00963922]
[1772989755566,0.00152,67142.0,67135.0,0.00963922]
[1772989756144,0.00152,67142.0,67137.0,0.00963922]
[1772989756967,9.456e-05,67143.0,67137.0,0.00963922]
[1772989757198,0.00152,67142.0,67137.0,0.00963922]
[1772989758320,0.00152,67142.0,67138.0,0.07447347]
[1772989758524,0.00152,67142.0,67139.0,0.00963922]
[1772989758961,0.00152,67142.0,67139.0,0.00948922]
[1772989759162,0.0002415,67144.0,67139.0,0.00948922]
[1772989759350,0.00174001,67143.0,67139.0,0.00948922]
[1772989759555,0.00152,67142.0,67139.0,0.00948922]
[1772989759755,0.00152,67141.0,67139.0,0.00948922]
[1772989760168,0.00152,67140.0,67139.0,0.00948922]
[1772989760431,0.07446215,67149.0,67140.0,0.07447125]
[1772989760632,0.00152,67148.0,67140.0,0.07447125]
[1772989764494,0.00152,67148.0,67140.0,0.08403547]
[1772989765363,0.07598239,67148.0,67140.0,0.08403547]
[1772989767376,0.07598239,67148.0,67136.0,0.00956422]
[1772989767582,0.0762024,67148.0,67136.0,0.009961]
[1772989768595,0.00022001,67155.0,67136.0,0.009961]
[1772989768596,0.00152,67147.0,67137.0,0.00956422]
[1772989768803,0.00152,67146.0,67137.0,0.00956422]
[1772989769046,0.00152,67145.0,67137.0,0.00956422]
[1772989769257,0.00152,67144.0,67137.0,0.00956422]
[1772989769395,0.00152,67143.0,67139.0,0.00956422]
[1772989769587,0.30169338,67154.0,67139.0,0.00956422]
[1772989769781,0.00152,67153.0,67139.0,0.00956422]
[1772989771131,0.00152,67152.0,67139.0,0.00956422]
[1772989771480,0.00152,67151.0,67139.0,0.00956422]
[1772989771858,0.00152,67151.0,67141.0,0.00956422]
[1772989772061,0.00152,67150.0,67141.0,0.00956422]
[1772989772648,0.00152,67149.0,67141.0,0.00956422]
[1772989773252,0.0001706,67154.0,67142.0,0.00956422]
[1772989773454,0.00152,67153.0,67142.0,0.00956422]
[1772989773809,0.00152,67152.0,67142.0,0.22939221]
[1772989773962,0.00152,67152.0,67145.0,0.00956422]
[1772989774759,0.21960151,67151.0,67133.0,0.00956422]
[1772989775140,0.21960151,67151.0,67138.0,0.07447339]
[1772989775904,0.07446016,67150.0,67138.0,0.07447339]
[1772989776109,0.29406167,67150.0,67138.0,0.07447339]
[1772989776693,0.07446016,67150.0,67138.0,0.07447339]
[1772989776883,0.21960151,67149.0,67138.0,0.07447339]
[1772989777833,0.21960151,67149.0,67138.0,0.07432339]
[1772989778011,0.00152,67152.0,67138.0,0.07432339]
[1772989778212,0.00152,67151.0,67139.0,0.00956422]
[1772989778743,0.07462663,67154.0,67139.0,0.00956422]
[1772989778744,0.00152,67150.0,67139.0,0.00956422]
[1772989778883,0.00152,67149.0,67141.0,0.00956422]
[1772989779287,0.07114663,67154.0,67141.0,0.00956422]
[1772989779508,0.00152,67148.0,67141.0,0.00956422]
[1772989780161,0.00152,67148.0,67142.0,0.08403325]
[1772989780347,0.00152,67148.0,67143.0,0.00956422]
[1772989780557,0.00152,67148.0,67142.0,0.07446903]
[1772989780756,0.22112151,67148.0,67140.0,0.07446903]
[1772989781108,0.00152,67148.0,67142.0,0.07446903]
[1772989781628,0.07445982,67151.0,67142.0,0.07446903]
[1772989781820,0.00152,67147.0,67142.0,0.07446903]
[1772989782623,0.21960151,67146.0,67132.0,0.17847275]
[1772989782913,0.21960151,67146.0,67127.0,0.00956422]
[1772989782914,0.21960151,67146.0,67131.0,0.07448123]
[1772989783073,0.21999829,67146.0,67131.0,0.07448123]
[1772989783834,0.21999829,67146.0,67123.0,0.07448789]
[1772989784112,0.22112151,67145.0,67125.0,0.07448789]
[1772989784318,0.22112151,67145.0,67121.0,0.00973482]
[1772989784319,0.21960151,67139.0,67121.0,0.07466279]
[1772989784523,0.21960151,67137.0,67121.0,0.07466279]
[1772989784678,0.21960151,67137.0,67120.0,0.07484644]
[1772989785087,0.21960151,67137.0,67120.0,0.000353]
[1772989785524,0.00152,67138.0,67113.0,0.07450048]
[1772989785525,0.29407524,67136.0,67113.0,0.07450048]
[1772989785724,0.21960151,67135.0,67113.0,0.07450048]
[1772989786002,0.29407524,67136.0,67112.0,0.00023]
[1772989786003,0.04928314,67130.0,67112.0,0.00023]
[1772989786189,0.07448456,67128.0,67112.0,0.07473198]
[1772989786388,0.00152,67127.0,67113.0,0.00956422]
[1772989786615,0.00152,67126.0,67113.0,0.22939221]
[1772989786814,0.00152,67126.0,67114.0,0.00956422]
[1772989787014,0.07448456,67128.0,67114.0,0.00956422]
[1772989787277,0.00152,67127.0,67114.0,0.00956422]
[1772989788088,0.07447705,67135.0,67116.0,0.22939221]
[1772989788236,0.00152,67134.0,67121.0,0.22939221]
[1772989788440,0.00152,67134.0,67119.0,0.07449455]
[1772989788441,0.21960151,67144.0,67124.0,0.00956422]
[1772989788639,0.00152,67143.0,67124.0,0.00956422]
[1772989788842,0.21960151,67144.0,67125.0,0.00956422]
[1772989789060,0.00152,67142.0,67127.0,0.00956422]
[1772989789523,0.21960151,67141.0,67120.0,0.00956422]
[1772989789648,0.22112151,67141.0,67120.0,0.00956422]
[1772989789851,0.22112151,67141.0,67121.0,0.22939221]